bitfinex/quotes_ETHUSD_20251119
["timestamp","ask_amount","ask_price","bid_price","bid_amount"]
[1763512312132,0.002,3101.6,3101.5,1.75424511]
[1763512312295,0.002,3101.6,3101.5,1.28254511]
[1763512312626,0.002,3101.8,3101.5,1.75424511]
[1763512312936,0.002,3101.8,3101.7,0.4716]
[1763512313343,0.002,3101.8,3101.7,0.9433]
[1763512313503,0.002,3101.8,3101.7,1.11872451]
[1763512314933,0.002,3102.0,3101.7,1.11872451]
[1763512315131,0.002,3102.0,3101.9,0.4716]
[1763512315936,0.4661,3102.0,3101.7,0.17542451]
[1763512316100,0.4803,3102.0,3101.5,0.63761374]
[1763512316306,0.4803,3102.0,3101.4,0.1524]
[1763512316702,0.002,3102.0,3101.9,0.4716]
[1763512318439,0.002,3102.0,3101.9,0.9433]
[1763512321945,0.002,3102.2,3102.0,0.405504]
[1763512322144,0.002,3102.5,3102.3,0.405504]
[1763512322368,0.4803,3104.0,3102.4,0.877104]
[1763512322541,0.4803,3103.7,3102.4,1.348804]
[1763512322741,0.4803,3103.7,3102.6,0.405504]
[1763512323246,0.4803,3103.7,3102.8,0.405504]
[1763512323436,0.4803,3103.7,3102.1,0.28289541]
[1763512323637,0.4803,3103.7,3102.4,0.405504]
[1763512323836,0.4803,3103.7,3102.6,0.405504]
[1763512324274,0.4803,3103.7,3102.7,0.4717]
[1763512325970,0.002,3103.7,3102.7,0.4717]
[1763512326768,0.002,3103.7,3102.8,0.405504]
[1763512326976,0.002,3103.7,3103.0,0.405504]
[1763512327139,0.002,3103.7,3103.6,0.6816]
[1763512327588,0.002,3104.0,3103.6,1.1382]
[1763512327866,0.002,3104.0,3103.7,0.9451]
[1763512328281,0.002,3104.0,3103.9,0.4885]
[1763512328672,0.002,3104.0,3103.9,0.9451]
[1763512328881,0.002,3104.0,3103.9,0.4885]
[1763512329270,0.002,3104.0,3103.6,0.1931]
[1763512329580,0.002,3104.0,3103.9,0.4885]
[1763512330597,0.002,3104.0,3103.9,1.60151763]
[1763512330754,0.002,3104.0,3103.9,1.14491763]
[1763512330954,0.002,3104.0,3103.9,1.60151763]
[1763512332295,0.002,3104.4,3104.1,0.4885]
[1763512332459,0.002,3104.4,3104.0,0.405504]
[1763512332656,0.002,3104.4,3104.0,0.862104]
[1763512332861,0.002,3104.5,3104.4,0.405504]
[1763512333076,0.002,3104.5,3104.4,0.894004]
[1763512333292,0.9489,3104.5,3104.1,0.12911743]
[1763512333459,0.4624,3104.5,3104.0,0.405504]
[1763512333891,0.4624,3104.5,3104.0,0.862104]
[1763512334561,0.002,3104.5,3104.1,0.4566]
[1763512334757,0.002,3104.5,3104.4,0.4885]
[1763512336620,0.9489,3104.5,3103.9,0.65641763]
[1763512336822,0.002,3104.5,3103.9,0.4566]
[1763512337738,0.002,3104.5,3103.6,0.1931]
[1763512337739,0.4885,3104.5,3103.7,0.405504]
[1763512338100,0.4885,3104.5,3103.6,0.85461555]
[1763512338721,0.4885,3104.5,3102.5,2.63787594]
[1763512338722,0.6248,3103.7,3101.4,0.1524]
[1763512338940,0.6248,3103.7,3102.9,0.6414]
[1763512339230,0.4885,3104.5,3103.0,0.03222687]
[1763512339231,0.4865,3104.2,3103.0,0.03222687]
[1763512339526,0.4865,3104.2,3103.1,0.405504]
[1763512339888,0.4865,3104.2,3103.1,0.4566]
[1763512340507,0.4604,3103.2,3103.1,0.65858806]
[1763512340728,0.6248,3103.2,3102.5,0.4566]
[1763512340926,0.002,3104.5,3102.5,0.4566]
[1763512340927,0.1859,3103.5,3102.5,0.4566]
[1763512341551,0.4543,3103.4,3102.5,0.4566]
[1763512341731,0.4543,3103.4,3102.1,0.6117]
[1763512341930,0.4543,3103.4,3102.2,0.458]
[1763512342816,0.4543,3103.4,3101.9,0.1537]
[1763512343145,0.4543,3103.4,3102.0,0.405504]
[1763512343349,0.4543,3103.4,3102.6,0.001]
[1763512343562,0.6567,3102.7,3102.6,0.001]
[1763512343930,1.111,3102.7,3102.6,0.001]
[1763512346527,0.4652,3102.1,3101.5,0.001]
[1763512346895,0.3887,3101.6,3101.5,0.001]
[1763512347048,0.3887,3101.6,3100.3,0.001]
[1763512347212,0.4567,3101.3,3100.3,0.001]
[1763512347418,0.911,3101.3,3100.3,0.001]
[1763512348835,0.911,3101.3,3100.3,0.66321967]
[1763512349038,0.911,3101.3,3100.3,0.001]
[1763512349240,0.405504,3101.2,3100.3,0.001]
[1763512349448,0.6429,3100.4,3100.3,0.001]
[1763512349977,1.0972,3100.4,3100.3,0.001]
[1763512350451,1.0972,3100.4,3099.6,0.001]
[1763512350452,0.1963,3100.0,3099.6,0.001]
[1763512350674,0.3812,3099.7,3099.6,0.001]
[1763512350878,0.8355,3099.7,3099.6,0.001]
[1763512351682,0.8355,3099.7,3096.0,3.38367387]
[1763512351683,3.779934,3099.6,3097.0,0.82065689]
[1763512351855,1.78039664,3099.2,3097.2,0.12941696]
[1763512352052,1.31249664,3099.0,3097.1,0.458]
[1763512352246,0.90699264,3098.8,3097.1,0.458]
[1763512352440,0.90699264,3098.6,3097.0,0.36265689]
[1763512352670,0.90699264,3098.6,3097.1,0.458]
[1763512352671,2.39638,3098.5,3097.1,0.458]
[1763512352880,0.90699264,3098.4,3097.1,0.458]
[1763512353045,0.4543,3098.4,3097.1,0.458]
[1763512353240,0.90699264,3098.2,3097.0,0.16855689]
[1763512353454,1.76679664,3098.3,3097.0,0.16855689]
[1763512353784,0.9837038,3098.5,3097.1,0.6521]
[1763512353785,0.17667966,3098.2,3097.1,0.6521]
[1763512353984,0.405504,3098.8,3097.1,0.6521]
[1763512354182,0.1905,3098.9,3097.2,0.49028722]
[1763512354415,0.1905,3098.9,3097.3,0.405504]
[1763512354682,0.1905,3098.9,3097.4,0.458]
[1763512355044,0.1905,3098.9,3097.5,0.405504]
[1763512355246,0.4543,3099.7,3098.8,0.6154]
[1763512355478,0.1908,3099.8,3098.2,0.1524]
[1763512355479,0.6565,3098.9,3098.2,0.1524]
[1763512355878,0.6565,3098.9,3097.1,0.1941]
[1763512355879,0.4543,3098.8,3097.7,0.1524]
[1763512356188,0.4543,3098.8,3097.7,0.6104]
[1763512357096,0.1886,3098.9,3097.8,0.4746]
[1763512357851,0.4786,3098.8,3097.7,0.1524]
[1763512358421,0.4786,3098.8,3097.1,0.1941]
[1763512358422,0.405504,3098.7,3097.1,0.6687]
[1763512358572,3.36270664,3098.7,3097.1,0.6687]
[1763512358771,0.86273066,3098.6,3097.1,0.6687]
[1763512359007,0.4786,3098.6,3097.1,0.6687]
[1763512359217,0.4786,3098.5,3097.2,0.4746]
[1763512359567,0.6672,3098.9,3097.3,0.03228618]
[1763512359770,0.6672,3098.9,3097.4,0.4746]
[1763512359982,0.4786,3098.8,3097.4,0.4746]
[1763512360879,0.1886,3098.9,3097.5,0.0322841]
[1763512361298,0.1886,3098.9,3097.6,0.4746]
[1763512361878,0.002,3099.1,3098.8,0.464]
[1763512362081,0.002,3099.1,3098.8,0.6164]
[1763512362305,0.4577,3098.9,3098.1,0.1524]
[1763512362468,0.002,3099.1,3098.1,0.1524]
[1763512362785,0.002,3099.1,3098.2,0.4746]
[1763512363320,0.4806,3099.1,3098.1,0.1524]
[1763512363817,0.002,3099.1,3098.1,0.627]
[1763512363995,0.4806,3099.1,3098.1,0.627]
[1763512365717,0.4806,3099.1,3098.1,0.1524]
[1763512365928,0.4806,3099.1,3097.6,0.4746]
[1763512368043,0.405504,3099.0,3097.3,0.4756]
[1763512368637,0.4786,3098.9,3097.3,0.4756]
[1763512368844,0.90699264,3098.7,3097.3,0.4756]
[1763512369145,0.35775066,3098.6,3097.3,0.4756]
[1763512369481,0.4786,3098.7,3097.3,0.4756]
[1763512370147,0.4806,3099.1,3097.3,0.4756]
[1763512370433,1.31249664,3098.3,3097.3,0.001]
[1763512370738,0.90699264,3098.1,3097.3,0.001]
[1763512370926,2.9105742,3098.2,3097.3,0.001]
[1763512370927,2.267258,3098.0,3097.3,0.001]
[1763512371135,0.6623,3097.9,3097.3,0.001]
[1763512371497,0.4786,3097.8,3097.3,0.001]
[1763512372847,1.2409162,3098.2,3097.3,0.4756]
[1763512373007,0.4786,3098.2,3097.3,0.4756]
[1763512373836,0.4786,3098.2,3097.3,0.001]
[1763512374242,0.4786,3098.5,3097.3,0.4756]
[1763512375437,0.405504,3098.7,3097.3,0.4756]
[1763512375836,0.405504,3098.8,3097.3,0.4756]
[1763512376040,0.4786,3098.7,3097.3,0.001]
[1763512376241,0.4786,3098.7,3097.4,0.4746]
[1763512377364,0.77469876,3098.7,3097.4,0.4746]
[1763512377738,0.77469876,3098.7,3097.4,0.50688514]
[1763512377938,0.64676914,3098.7,3097.4,0.4746]
[1763512378137,0.29650316,3098.6,3097.4,0.4746]
[1763512378560,0.4786,3098.7,3097.4,0.4746]
[1763512379267,0.29650928,3098.6,3097.4,0.4746]
[1763512379566,0.29650928,3098.5,3097.4,0.4746]
[1763512379739,0.29704646,3098.4,3097.4,0.4746]
[1763512379948,0.77564646,3098.6,3097.4,0.4746]
[1763512380150,0.29742526,3098.5,3097.4,0.4746]
[1763512380339,0.77602526,3098.5,3097.4,0.4746]
[1763512380540,0.4786,3098.5,3097.4,0.4746]
[1763512380734,0.4786,3098.4,3097.3,0.001]
[1763512381358,0.29742142,3098.3,3097.4,0.4746]
[1763512381555,0.29742142,3098.6,3097.4,0.4746]
[1763512381754,0.29742142,3098.5,3097.4,0.4746]
[1763512381966,0.29742142,3098.4,3097.4,0.4746]
[1763512382167,0.29742142,3098.5,3097.3,0.001]
[1763512382375,0.29742142,3098.4,3097.3,0.001]
[1763512382537,0.77602142,3098.3,3097.3,0.001]
[1763512382737,0.4786,3098.3,3097.3,0.001]
[1763512382939,0.4786,3098.2,3097.3,0.001]
[1763512383739,0.77626331,3098.2,3097.3,0.001]
[1763512384071,0.4786,3098.2,3097.3,0.001]
[1763512384669,0.4786,3098.2,3097.3,0.4756]
[1763512386718,0.19977975,3098.7,3097.3,0.4756]
[1763512386719,0.29770902,3098.6,3097.3,0.4756]
[1763512387018,0.79230902,3098.5,3097.3,0.4756]
[1763512387166,0.29770902,3098.4,3097.3,0.4756]
[1763512387675,0.29770902,3098.3,3097.3,0.4756]
[1763512389180,0.4946,3098.2,3097.3,0.001]
[1763512389370,0.46763919,3098.1,3097.3,0.001]
[1763512389775,0.79230902,3098.0,3097.3,0.001]
[1763512389974,0.6305,3097.4,3097.3,0.001]
[1763512390173,1.1251,3097.4,3097.3,0.001]
[1763512391910,0.1801,3097.8,3097.3,0.4873]
[1763512392126,0.4946,3098.4,3097.7,0.4863]
[1763512392268,0.29745209,3098.3,3097.9,0.4863]
[1763512392474,0.29745209,3098.3,3097.3,0.001]
[1763512392781,0.29745209,3098.3,3097.3,0.4673]
[1763512392983,0.29745209,3098.5,3097.3,0.4673]
[1763512393308,0.29745209,3098.4,3097.3,0.4673]
[1763512393507,0.29745209,3098.5,3097.3,0.4673]
[1763512393710,0.29745209,3098.4,3097.3,0.4673]
[1763512393920,0.29745209,3098.5,3097.3,0.4673]
[1763512394122,0.29745209,3098.4,3097.3,0.4673]
[1763512394271,0.29745209,3098.3,3097.3,0.4673]
[1763512394476,0.29745209,3098.5,3097.3,0.4673]
[1763512394676,0.29745209,3098.4,3097.3,0.4673]
[1763512394891,0.29745209,3098.3,3097.3,0.4673]
[1763512395116,0.29745209,3098.4,3097.3,0.4673]
[1763512395285,0.29745209,3098.3,3097.3,0.4673]
[1763512395492,0.29745209,3098.4,3097.3,0.4673]
[1763512395688,0.29745209,3098.3,3097.3,0.4673]
[1763512395917,0.405504,3098.3,3097.3,0.001]
[1763512396114,0.90699264,3098.4,3097.3,0.001]
[1763512396115,0.6341,3097.4,3097.3,0.001]
[1763512396615,1.1287,3097.4,3097.3,0.001]
[1763512397604,0.6341,3097.4,3097.3,0.001]
[1763512397949,0.1801,3097.6,3097.3,0.001]
[1763512398457,0.6747,3097.6,3097.3,0.001]
[1763512398629,0.1801,3097.6,3097.3,0.001]
[1763512399902,0.4681,3097.4,3097.3,0.001]
[1763512400529,0.1801,3097.6,3097.3,0.001]
[1763512401134,0.6747,3097.6,3097.3,0.001]
[1763512401735,0.1801,3097.6,3097.3,0.001]
[1763512401940,0.184,3097.9,3097.5,0.4885]
[1763512402110,0.184,3097.9,3097.3,0.001]
[1763512402939,0.75069589,3098.1,3097.8,0.4885]
[1763512403147,0.6622,3098.4,3097.3,0.001]
[1763512403357,0.4782,3098.3,3097.3,0.001]
[1763512404030,0.90699264,3098.2,3097.3,0.001]
[1763512404452,0.4782,3098.1,3097.3,0.001]
[1763512405157,0.405504,3098.3,3097.3,0.001]
[1763512405359,0.4782,3098.2,3097.3,0.001]
[1763512406140,0.4782,3098.2,3097.3,0.4559]
[1763512408767,0.184,3098.4,3097.3,0.4559]
[1763512409067,0.6622,3098.4,3097.3,0.4559]
[1763512412347,0.184,3098.4,3097.3,0.4559]
[1763512413170,0.6622,3098.4,3097.3,0.4559]
[1763512413575,0.4782,3098.3,3097.3,0.4559]
[1763512413889,0.405504,3098.8,3097.3,0.4559]
[1763512413890,0.405504,3098.8,3097.3,0.001]
[1763512414088,0.184,3098.9,3098.3,0.4885]
[1763512414384,0.4511,3098.4,3097.6,0.4549]
[1763512414560,0.4782,3098.8,3097.3,0.4559]
[1763512414762,0.4782,3098.7,3097.3,0.001]
[1763512414968,0.66726622,3098.6,3097.3,0.001]
[1763512415164,0.4782,3098.5,3097.3,0.001]
[1763512415391,0.4782,3098.5,3097.4,0.4549]
[1763512415581,0.184,3098.9,3097.4,0.4549]
[1763512415784,0.4782,3098.6,3097.4,0.4549]
[1763512415962,6.67266224,3098.6,3097.4,0.4549]
[1763512416162,1.14546622,3098.5,3097.4,0.4549]
[1763512416390,0.4543,3097.5,3097.3,0.001]
[1763512416576,0.4801,3098.4,3097.3,0.001]
[1763512416774,0.1867,3097.8,3097.3,0.001]
[1763512416972,0.4801,3098.4,3097.3,0.001]
[1763512417294,0.184,3098.9,3097.4,0.4551]
[1763512417295,0.4801,3098.7,3097.4,0.4551]
[1763512417870,0.4801,3098.6,3097.4,0.4551]
[1763512418090,0.6641,3098.9,3097.4,0.4551]
[1763512418590,0.4801,3098.8,3097.4,0.4551]
[1763512418790,0.4801,3098.8,3097.3,0.001]
[1763512419093,0.4801,3098.8,3097.5,0.4551]
[1763512419497,0.4801,3098.8,3097.3,0.4561]
[1763512421259,0.405504,3098.5,3097.3,0.001]
[1763512421493,1.14009662,3098.4,3097.3,0.001]
[1763512421894,0.4801,3098.3,3097.3,0.001]
[1763512422707,0.4543,3097.4,3097.3,0.001]
[1763512423569,0.9344,3097.4,3097.3,0.001]
[1763512428285,0.4543,3097.4,3097.3,0.001]
[1763512428607,0.9344,3097.4,3097.3,0.001]
[1763512430979,1.66595622,3097.4,3097.3,0.001]
[1763512431879,0.1867,3097.6,3097.3,0.001]
[1763512432086,0.4543,3097.4,3097.3,0.001]
[1763512432616,0.9344,3097.4,3097.3,0.001]
[1763512433619,0.4543,3097.4,3097.3,0.001]
[1763512434202,0.1867,3097.6,3097.3,0.001]
[1763512435916,6.67456224,3097.8,3097.3,0.001]
[1763512436121,0.4801,3097.7,3097.3,0.001]
[1763512437022,6.88058846,3097.8,3097.3,0.001]
[1763512437238,0.68612622,3097.8,3097.3,0.4561]
[1763512437545,0.4543,3097.4,3097.3,0.001]
[1763512437693,0.4801,3097.7,3097.3,0.001]
[1763512437889,0.4801,3098.1,3097.6,0.466]
[1763512438219,0.4801,3098.1,3097.3,0.4561]
[1763512440286,0.4801,3098.1,3097.3,0.001]
[1763512440584,0.641,3097.4,3097.3,0.001]
[1763512440789,0.4543,3097.4,3097.3,0.001]
[1763512441047,0.405504,3098.5,3097.3,0.001]
[1763512441048,0.1867,3098.0,3097.3,0.467]
[1763512441558,6.67456224,3098.3,3097.4,0.4551]
[1763512441719,6.19446224,3098.3,3097.4,0.4551]
[1763512443639,6.19446224,3098.3,3097.3,0.001]
[1763512443640,0.4801,3098.2,3097.3,0.001]
[1763512444562,6.19446224,3097.8,3097.3,0.001]
[1763512445196,0.4543,3097.4,3097.3,0.001]
[1763512445644,0.9344,3097.4,3097.3,0.001]
[1763512445850,0.4543,3097.4,3097.3,0.001]
[1763512446171,0.9344,3097.4,3097.3,0.001]
[1763512447558,0.4543,3097.4,3097.3,0.001]
[1763512447755,0.9314,3097.4,3097.3,0.001]
[1763512451375,0.4543,3097.4,3097.3,0.001]
[1763512451680,0.4642,3097.4,3097.3,0.001]
[1763512451973,0.9413,3097.4,3097.3,0.001]
[1763512454671,0.4642,3097.4,3097.3,0.001]
[1763512455260,0.9413,3097.4,3097.3,0.001]
[1763512457788,6.339626,3097.7,3097.3,0.001]
[1763512458105,0.722223,3097.6,3097.3,0.001]
[1763512458392,0.4642,3097.4,3097.3,0.001]
[1763512458988,0.9413,3097.4,3097.3,0.001]
[1763512459693,0.722223,3097.6,3097.3,0.001]
[1763512459900,0.4642,3097.4,3097.3,0.001]
[1763512460101,0.6305523,3097.4,3097.3,0.001]
[1763512460286,1.1076523,3097.4,3097.3,0.001]
[1763512462170,1.1076523,3097.4,3096.9,0.001]
[1763512462373,0.1805,3097.0,3096.9,0.001]
[1763512462773,0.6517,3097.0,3096.9,0.001]
[1763512462975,1.3508326,3097.0,3096.9,0.001]
[1763512463192,1.3508326,3097.0,3094.4,0.16859394]
[1763512463193,2.605764,3096.9,3094.6,0.1608]
[1763512463393,1.067904,3096.7,3095.5,0.4819]
[1763512463902,1.539104,3096.7,3095.5,0.4819]
[1763512464507,3.768473,3096.6,3095.5,0.4819]
[1763512464799,6.339626,3096.4,3095.5,0.4819]
[1763512465671,6.810826,3096.4,3095.5,0.4819]
[1763512466495,6.339626,3096.4,3095.5,0.4819]
[1763512466802,0.51993895,3096.5,3095.5,0.4819]
[1763512466989,0.6664,3096.7,3095.5,0.4819]
[1763512467733,6.339626,3097.0,3095.5,0.4819]
[1763512468117,0.4712,3096.9,3095.5,0.4819]
[1763512468288,6.339626,3097.0,3095.5,0.4819]
[1763512468821,0.4712,3096.9,3095.5,0.4819]
[1763512469002,0.6810826,3096.8,3095.5,0.4819]
[1763512469603,0.4712,3096.7,3095.5,0.4819]
[1763512469800,6.339626,3096.4,3095.5,0.4819]
[1763512470237,6.810826,3096.4,3095.5,0.4819]
[1763512470593,6.339626,3096.4,3095.5,0.4819]
[1763512470793,1.1051626,3096.3,3095.5,0.4819]
[1763512471829,0.6339626,3096.3,3095.5,0.4819]
[1763512472123,0.405504,3096.6,3095.5,0.4819]
[1763512472343,0.4712,3096.5,3095.5,0.4819]
[1763512473515,0.876704,3096.8,3095.5,0.4819]
[1763512473929,0.405504,3096.6,3095.5,0.4819]
[1763512474302,0.4712,3096.5,3095.5,0.4819]
[1763512475351,0.4712,3096.5,3095.2,0.65094938]
[1763512475831,0.4712,3096.5,3094.6,0.81174938]
[1763512475832,0.4938,3095.5,3094.8,0.4819]
[1763512476218,0.1371,3095.7,3095.4,0.4913]
[1763512476424,0.4712,3095.8,3094.8,0.4819]
[1763512477533,6.810826,3095.8,3094.7,0.63280069]
[1763512477826,0.7005326,3095.7,3094.6,0.6111]
[1763512478015,1.1863326,3095.7,3094.6,0.6111]
[1763512478225,0.4858,3095.6,3094.6,0.6111]
[1763512478813,0.4858,3095.6,3095.5,0.001]
[1763512479033,1.23839586,3095.6,3095.5,0.001]
[1763512479258,1.70649586,3095.6,3095.5,0.001]
[1763512481746,1.22069586,3095.6,3095.5,0.001]
[1763512481914,1.70649586,3095.6,3095.5,0.001]
[1763512483246,2.11199986,3095.6,3095.5,0.001]
[1763512483460,4.46820986,3095.6,3095.5,0.001]
[1763512483641,7.24784386,3095.6,3095.5,0.001]
[1763512483943,5.32276086,3095.6,3095.5,0.001]
[1763512484532,2.11199986,3095.6,3095.5,0.001]
[1763512485351,4.96734286,3095.6,3095.5,0.001]
[1763512485538,6.80734786,3095.6,3095.5,0.001]
[1763512485734,5.04250986,3095.6,3095.5,0.001]
[1763512486317,2.2415841,3095.6,3095.5,0.001]
[1763512486529,1.359404,3095.6,3095.5,0.001]
[1763512488452,11.93239889,3095.6,3095.5,0.001]
[1763512488660,1.69659953,3095.5,3095.1,0.001]
[1763512488823,6.88933,3095.2,3094.8,0.001]
[1763512489154,1.064904,3094.9,3094.8,0.001]
[1763512489329,2.40029945,3094.9,3094.8,0.001]
[1763512489531,7.913735,3094.9,3094.8,0.001]
[1763512489879,4.493613,3094.9,3094.8,0.001]
[1763512490557,7.710653,3094.9,3094.8,0.001]
[1763512490854,4.341135,3094.9,3094.8,0.001]
[1763512491059,1.550704,3094.9,3094.8,0.001]
[1763512491267,1.85953366,3094.9,3094.8,0.001]
[1763512491563,4.65991266,3094.9,3094.8,0.001]
[1763512491752,5.34806066,3094.9,3094.8,0.001]
[1763512492156,5.73216355,3094.9,3093.7,0.6306]
[1763512492352,0.405504,3094.7,3093.8,0.4503]
[1763512492562,0.405504,3094.5,3093.8,0.4503]
[1763512493243,0.405504,3094.8,3093.8,0.4503]
[1763512493864,0.405504,3094.6,3093.8,0.4503]
[1763512494470,0.405504,3094.8,3093.8,0.4503]
[1763512494769,0.405504,3094.6,3093.8,0.4503]
[1763512494972,0.5185341,3094.5,3093.8,0.4503]
[1763512495172,0.4858,3094.5,3093.8,0.4503]
[1763512496972,0.4858,3094.5,3093.7,0.6306]
[1763512497159,0.4858,3094.5,3093.8,0.001]
[1763512499241,0.405504,3094.6,3093.8,0.4513]
[1763512499571,0.585804,3094.6,3093.8,0.4513]
[1763512499761,1.071604,3094.6,3093.8,0.4513]
[1763512500735,0.1803,3094.6,3094.5,0.4913]
[1763512500938,0.002,3094.9,3094.5,0.4913]
[1763512501136,0.002,3094.9,3094.8,0.4913]
[1763512501367,0.002,3094.9,3093.9,0.4503]
[1763512501577,0.002,3094.9,3094.8,0.4913]
[1763512501949,0.002,3094.9,3094.8,0.9416]
[1763512502367,0.002,3094.9,3094.3,0.4503]
[1763512502546,0.002,3094.9,3094.8,0.4913]
[1763512504484,0.002,3094.9,3094.8,0.9416]
[1763512504965,0.002,3095.6,3095.2,0.6666]
[1763512505166,0.002,3095.6,3095.5,0.4913]
[1763512505554,0.002,3095.6,3095.2,0.1753]
[1763512505754,0.002,3095.6,3095.2,0.6256]
[1763512505954,0.002,3095.6,3095.5,0.4913]
[1763512506154,0.002,3095.6,3095.2,0.6256]
[1763512506372,0.002,3095.6,3095.5,0.4767]
[1763512506768,0.002,3095.6,3095.5,0.9378]
[1763512507506,7.69411227,3095.6,3094.6,0.4611]
[1763512507787,1.24633137,3095.5,3094.6,0.4611]
[1763512507968,0.002,3095.6,3094.6,0.4611]
[1763512508376,2.30121,3095.5,3094.0,0.1753]
[1763512508561,2.30121,3095.5,3094.1,0.4611]
[1763512508758,0.4514,3095.4,3094.1,0.4611]
[1763512509894,0.4514,3095.4,3094.1,1.09344072]
[1763512510058,0.66596526,3095.3,3094.1,1.09344072]
[1763512510255,0.66596526,3095.3,3094.2,0.4611]
[1763512510457,1.11736526,3095.3,3094.2,0.4611]
[1763512511379,0.4514,3095.2,3094.2,0.4611]
[1763512511964,0.66596526,3095.3,3094.2,0.4611]
[1763512512376,1.11736526,3095.3,3094.2,0.4611]
[1763512512972,0.66596526,3095.3,3094.2,0.4611]
[1763512513302,1.11736526,3095.3,3094.2,0.4611]
[1763512515590,0.20243579,3095.2,3094.2,0.4611]
[1763512515992,0.65383579,3095.2,3094.2,0.4611]
[1763512518216,0.4514,3095.1,3094.2,0.4611]
[1763512518821,4.60816975,3094.6,3094.2,0.4611]
[1763512519186,4.60816975,3094.3,3094.1,0.001]
[1763512519512,0.9263,3094.2,3094.1,0.001]
[1763512520285,2.23879664,3094.2,3094.1,0.001]
[1763512520889,1.78739664,3094.2,3094.1,0.001]
[1763512521086,1.83329264,3094.2,3094.1,0.001]
[1763512521388,2.23879664,3094.2,3094.1,0.001]
[1763512521697,0.405504,3094.0,3093.5,0.001]
[1763512521898,11.36963614,3093.9,3093.4,0.001]
[1763512522222,0.90699264,3093.5,3093.4,0.001]
[1763512522423,5.51516239,3093.5,3093.4,0.001]
[1763512522622,5.51516239,3093.5,3093.4,0.4565]
[1763512522927,0.159,3094.1,3093.4,0.9492]
[1763512523086,0.42618627,3094.8,3094.1,0.4555]
[1763512523087,0.1931,3094.6,3094.1,0.4555]
[1763512523286,0.1931,3094.6,3093.4,0.001]
[1763512523636,6.21365189,3094.3,3093.4,0.001]
[1763512523987,6.21365189,3094.3,3093.5,0.4927]
[1763512524808,6.64449984,3094.3,3093.5,0.4927]
[1763512526511,6.21365189,3094.3,3093.5,0.4927]
[1763512526714,0.1931,3094.6,3094.2,0.4555]
[1763512527022,6.70145189,3094.8,3094.2,0.6308]
[1763512527023,6.21365189,3094.8,3094.2,0.6308]
[1763512527321,0.90699264,3094.7,3094.2,0.6308]
[1763512527626,0.90699264,3094.7,3093.4,0.001]
[1763512527627,0.3641157,3094.6,3093.7,0.4927]
[1763512528191,0.4878,3094.5,3093.4,0.001]
[1763512528427,6.21365189,3094.3,3093.4,0.001]
[1763512528794,6.70145189,3094.3,3093.4,0.001]
[1763512528994,0.67014519,3094.2,3093.4,0.001]
[1763512529625,0.4878,3094.1,3093.4,0.001]
[1763512530196,1.57713783,3094.2,3093.4,0.001]
[1763512530404,1.57713783,3094.2,3093.4,0.4937]
[1763512531322,0.67014519,3094.2,3094.1,0.4555]
[1763512531523,0.4878,3094.5,3093.4,0.001]
[1763512531690,1.27110834,3094.6,3094.1,0.6308]
[1763512531892,0.74847602,3094.5,3094.1,0.6308]
[1763512532228,0.74847602,3094.5,3094.2,0.4927]
[1763512532434,0.6809,3095.0,3094.5,0.4555]
[1763512533237,0.6809,3095.0,3094.1,0.1753]
[1763512533238,0.4885,3094.6,3094.1,0.1753]
[1763512533525,0.4905,3094.6,3094.1,0.1753]
[1763512533738,0.4878,3094.5,3093.5,0.4937]
[1763512533946,0.1075,3094.2,3093.5,0.4937]
[1763512534396,0.71919519,3094.4,3093.5,0.4937]
[1763512535523,0.002,3094.6,3094.3,0.6308]
[1763512535844,0.002,3094.6,3094.5,0.4555]
[1763512536344,0.002,3094.6,3094.3,0.1753]
[1763512536495,0.002,3094.6,3093.9,0.4921]
[1763512536696,0.002,3094.6,3094.1,0.1753]
[1763512537146,0.002,3094.6,3094.2,0.4921]
[1763512537428,0.002,3094.6,3094.5,0.4971]
[1763512537627,0.002,3094.6,3094.2,0.4921]
[1763512537825,0.002,3094.6,3094.5,0.4971]
[1763512538328,0.002,3094.6,3094.1,0.1753]
[1763512539005,0.002,3094.6,3094.1,0.6674]
[1763512540227,6.70255189,3094.6,3093.6,0.4921]
[1763512540453,0.67025519,3094.5,3093.6,0.4921]
[1763512540741,0.67025519,3094.5,3092.8,0.4931]
[1763512540742,0.4886,3093.5,3093.1,0.001]
[1763512540907,6.21365189,3093.2,3093.1,0.001]
[1763512542394,0.405504,3093.6,3093.1,0.001]
[1763512542592,0.4869,3093.5,3093.1,0.001]
[1763512542795,6.21365189,3093.7,3093.1,0.6734]
[1763512543023,0.67025519,3094.5,3093.1,0.6734]
[1763512543024,1.31249664,3094.1,3093.4,0.4971]
[1763512543225,1.98589664,3094.1,3093.1,0.1813]
[1763512543443,0.405504,3093.9,3093.1,0.1813]
[1763512543602,0.1803,3093.9,3093.1,0.1813]
[1763512544199,0.1803,3093.9,3093.1,0.6734]
[1763512545033,6.21365189,3093.7,3093.1,0.001]
[1763512545220,0.4916,3093.2,3093.1,0.001]
[1763512546003,2.06394783,3093.6,3093.1,0.001]
[1763512546212,0.4869,3093.5,3093.1,0.001]
[1763512546950,1.57704783,3093.6,3093.1,0.001]